bitfinex-derivatives/quotes_ETHF0:USTF0_20251117
["timestamp","ask_amount","ask_price","bid_price","bid_amount"]
[1763388491702,0.6671,3112.2,3111.4,0.00481904]
[1763388491908,3.2078,3112.1,3111.4,0.00481904]
[1763388492300,3.2078,3112.1,3111.5,0.52111]
[1763388492604,0.6671,3112.2,3111.9,3.2078]
[1763388493402,0.6671,3112.2,3111.5,3.2078]
[1763388493602,3.2078,3111.6,3110.1,3.2078]
[1763388493808,3.2078,3110.9,3110.1,3.2078]
[1763388494004,0.6671,3110.4,3110.1,3.2078]
[1763388494606,0.67112143,3110.4,3110.1,3.21069526]
[1763388495003,0.67112143,3110.4,3110.1,0.00289526]
[1763388496211,0.67112143,3110.4,3108.7,3.7615483]
[1763388496514,0.6548,3109.5,3108.8,0.52156]
[1763388496706,3.2078,3109.8,3109.1,3.2078]
[1763388497209,3.2078,3110.3,3109.5,3.2078]
[1763388497411,0.00402143,3110.4,3110.2,0.52133]
[1763388497705,0.00481904,3110.6,3110.4,0.52129]
[1763388497905,0.00481904,3110.6,3110.2,0.52132]
[1763388498104,0.00481904,3110.6,3110.2,3.2078]
[1763388498308,0.00481904,3110.6,3110.3,0.52131]
[1763388498612,0.0083579,3110.6,3110.2,3.72912]
[1763388498807,0.0083579,3110.6,3110.2,3.2078]
[1763388499015,0.0083579,3110.6,3110.2,3.72913]
[1763388499210,0.0083579,3110.6,3109.7,3.2078]
[1763388499408,0.0083579,3110.6,3110.1,3.2078]
[1763388499607,0.6548,3110.4,3109.5,3.2078]
[1763388499903,3.2078,3110.2,3109.5,3.2078]
[1763388500207,0.6548,3110.4,3109.1,0.00855928]
[1763388500208,0.6548,3109.5,3109.1,0.00855928]
[1763388501113,3.2078,3109.2,3109.1,0.00855928]
[1763388501315,3.2078,3109.2,3108.7,0.0321683]
[1763388501905,3.2078,3108.8,3108.7,0.0321683]
[1763388502308,3.2078,3108.8,3108.7,0.03508971]
[1763388503107,3.2078,3109.2,3108.7,0.03508971]
[1763388503416,0.6548,3109.5,3109.2,0.52149]
[1763388503809,0.6548,3109.5,3109.0,0.52153]
[1763388504003,0.6548,3109.5,3108.9,3.2078]
[1763388504312,3.2078,3109.2,3108.7,0.03508971]
[1763388506305,3.2078,3108.8,3108.7,0.03508971]
[1763388507109,3.2078,3109.2,3108.7,0.03508971]
[1763388507516,3.2078,3109.2,3109.1,0.52151]
[1763388507817,0.6548,3109.5,3109.4,0.52146]
[1763388508018,0.6548,3109.5,3109.4,3.72926]
[1763388508215,3.2078,3110.1,3109.4,12.4238]
[1763388508408,0.6548,3110.4,3109.9,3.2078]
[1763388508613,0.6548,3110.4,3109.9,3.72918]
[1763388508810,0.6548,3110.4,3110.0,0.52135]
[1763388509621,3.2161579,3110.6,3109.9,3.2078]
[1763388509817,0.0083579,3110.6,3110.4,3.2078]
[1763388512222,0.6331,3110.4,3110.2,0.00481904]
[1763388515932,3.2078,3110.5,3110.2,0.00481904]
[1763388516323,0.6331,3110.4,3110.2,0.00481904]
[1763388517228,3.2078,3110.5,3110.2,0.00481904]
[1763388518325,0.6331,3110.4,3110.2,0.00481904]
[1763388518628,3.2078,3110.5,3110.2,0.00481904]
[1763388519021,0.6331,3110.4,3110.2,0.00481904]
[1763388520530,0.6331,3110.4,3109.3,3.72928]
[1763388520836,3.2078,3110.0,3109.4,0.52146]
[1763388521022,3.2078,3110.0,3109.5,0.52144]
[1763388521430,3.2078,3110.0,3109.6,0.52143]
[1763388521737,3.2078,3110.0,3109.5,0.52145]
[1763388522033,3.2078,3110.4,3109.3,6.423]
[1763388522228,0.0083579,3110.6,3110.5,0.52128]
[1763388522635,0.0083579,3110.6,3110.5,9.73568]
[1763388522933,2.38157191,3110.9,3110.8,0.52123]
[1763388523126,0.6671,3111.3,3110.9,0.52121]
[1763388523329,0.6671,3111.3,3110.8,3.2078]
[1763388523330,3.2078,3111.7,3111.0,0.52118]
[1763388523538,3.2078,3111.7,3111.6,0.5211]
[1763388523740,3.8749,3112.2,3111.4,3.2078]
[1763388524036,0.00481904,3112.1,3111.9,3.72884]
[1763388524232,0.00481904,3112.1,3111.9,3.2078]
[1763388524433,0.00481904,3112.1,3111.9,3.72885]
[1763388524740,0.00481904,3112.1,3111.9,3.2078]
[1763388525540,0.00481904,3112.1,3111.9,3.72884]
[1763388525734,0.00481904,3112.1,3111.5,3.21261904]
[1763388526835,3.2078,3111.7,3111.5,0.00481904]
[1763388527028,3.21261904,3112.1,3111.5,0.00481904]
[1763388528946,0.6331,3111.2,3111.0,3.2078]
[1763388529738,3.2078,3111.6,3111.3,0.52114]
[1763388529945,3.2078,3111.6,3111.3,0.52470194]
[1763388530241,3.2078,3111.6,3111.3,0.00356194]
[1763388531441,3.2078,3111.6,3111.3,0.52471194]
[1763388531637,3.2078,3111.6,3111.3,0.00356194]
[1763388532043,0.00481904,3112.1,3111.5,3.2078]
[1763388532244,0.00481904,3112.1,3111.5,3.72891]
[1763388532738,0.00481904,3112.1,3111.5,3.2078]
[1763388534142,0.00481904,3112.1,3111.3,0.00356194]
[1763388534143,0.6331,3114.4,3112.0,3.2078]
[1763388534348,3.2078,3115.0,3114.3,3.2078]
[1763388534539,3.2078,3115.4,3114.5,0.5206]
[1763388534735,3.2078,3115.8,3115.0,0.52052]
[1763388534939,3.21154038,3115.8,3115.2,3.2078]
[1763388535439,0.00481904,3115.7,3115.6,3.2078]
[1763388539241,0.00481904,3115.7,3115.2,3.2078]
[1763388540644,0.00481904,3115.7,3115.6,3.2078]
[1763388540842,0.6155,3115.2,3115.1,0.00481904]
[1763388541845,0.6155,3115.2,3115.0,3.21190995]
[1763388543646,0.00481904,3115.7,3115.0,9.21190995]
[1763388543939,0.00481904,3115.7,3115.6,3.2078]
[1763388545444,0.00481904,3115.7,3115.0,9.95e-06]
[1763388545445,0.6155,3115.2,3115.0,9.95e-06]
[1763388545647,3.2078,3115.1,3114.0,0.52068]
[1763388545945,3.2078,3115.1,3114.2,0.52065]
[1763388546149,3.2078,3114.7,3113.8,3.2078]
[1763388546538,3.2078,3114.7,3113.8,3.21047448]
[1763388546733,3.2078,3114.3,3113.8,3.21047448]
[1763388546934,3.2078,3114.7,3113.8,3.21047448]
[1763388547138,3.2078,3114.3,3113.8,3.21047448]
[1763388547339,3.2078,3114.3,3113.9,0.52069]
[1763388547745,3.2078,3114.7,3113.9,0.52071]
[1763388547946,3.2078,3114.7,3113.8,3.21047448]
[1763388548455,3.2078,3115.3,3114.7,0.52058]
[1763388548639,3.2078,3115.3,3114.5,0.5206]
[1763388548952,3.2078,3114.9,3114.2,3.2078]
[1763388549150,3.2078,3114.5,3114.1,3.2078]
[1763388549344,3.2078,3114.5,3114.1,0.52066]
[1763388549545,3.2078,3115.0,3114.0,3.2078]
[1763388549841,3.2078,3114.6,3114.0,3.2078]
[1763388550043,3.2078,3114.1,3113.8,0.00267448]
[1763388550644,0.6155,3114.0,3113.8,0.00267448]
[1763388550848,3.2078,3114.1,3113.8,0.00267448]
[1763388552245,10.16916832,3114.0,3112.1,3.2078]
[1763388552442,3.8233,3112.8,3112.1,3.2078]
[1763388552753,3.8233,3112.8,3111.7,3.2078]
[1763388552953,3.8233,3112.8,3112.0,0.52102]
[1763388553141,3.82600181,3112.8,3112.1,0.52101]
[1763388553347,3.82600181,3112.8,3112.0,0.00331651]
[1763388553542,3.2078,3112.4,3112.0,0.00331651]
[1763388554550,3.2078,3112.4,3111.3,3.2078]
[1763388554551,9.2078,3112.4,3111.3,3.2078]
[1763388554749,3.2078,3111.7,3110.8,0.52122]
[1763388555057,3.2078,3111.2,3110.3,0.52131]
[1763388555255,3.2078,3111.2,3110.2,3.2078]
[1763388555553,3.2078,3110.7,3110.2,0.0028452]
[1763388555857,3.2078,3110.7,3110.2,0.5241652]
[1763388556147,3.2078,3110.7,3110.2,0.0028452]
[1763388556353,3.2078,3110.7,3110.2,0.5241752]
[1763388556748,3.2078,3110.7,3110.2,0.0028452]
[1763388556953,3.2078,3110.3,3110.2,0.0028452]
[1763388557154,3.21163171,3110.3,3110.2,0.0028452]
[1763388559346,0.00383171,3110.3,3110.2,6.0028452]
[1763388559552,3.2078,3110.8,3110.6,0.52125]
[1763388559751,0.00481904,3111.6,3111.5,0.52111]
[1763388560152,0.00481904,3111.6,3111.3,3.2078]
[1763388560355,0.00481904,3111.6,3111.4,0.52112]
[1763388560551,0.00857124,3111.6,3111.4,0.52112]
[1763388561449,0.00857124,3111.6,3110.8,3.2078]
[1763388561649,0.00857124,3111.6,3111.1,0.52118]
[1763388561958,0.00857124,3111.6,3111.3,3.2078]
[1763388563259,0.6545,3111.3,3110.8,3.72903]
[1763388563455,0.6545,3111.3,3110.8,0.52123]
[1763388563653,0.6545,3111.3,3110.7,0.52125]
[1763388563854,0.6545,3111.3,3110.4,3.2078]
[1763388564352,3.2078,3111.0,3110.4,3.2078]
[1763388564953,3.2078,3111.0,3110.4,3.72909]
[1763388565156,3.2078,3111.0,3110.4,3.2078]
[1763388566161,3.2078,3111.0,3110.5,0.52127]
[1763388566654,0.6545,3111.3,3110.4,3.2078]
[1763388566849,0.6545,3111.3,3110.9,0.5212]
[1763388567158,0.6545,3111.3,3110.4,3.2078]
[1763388567861,3.2078,3111.0,3110.4,3.2078]
[1763388568560,0.6545,3111.3,3110.4,3.2078]
[1763388568757,0.6545,3111.3,3111.1,0.52117]
[1763388568958,3.2078,3111.4,3111.3,0.52115]
[1763388569358,3.2078,3111.4,3110.8,3.2078]
[1763388569655,0.00857124,3111.6,3111.2,3.72896]
[1763388570057,0.00857124,3111.6,3110.8,3.2078]
[1763388570259,0.6545,3111.2,3110.6,0.52126]
[1763388570459,0.6545,3111.2,3110.4,0.52129]
[1763388570658,0.6545,3111.2,3110.3,3.2078]
[1763388571065,0.00857124,3111.6,3111.5,0.52111]
[1763388571365,0.00857124,3111.6,3111.5,3.72891]
[1763388573763,1.62552571,3114.9,3114.6,0.52059]
[1763388573960,0.6545,3116.0,3115.0,0.52052]
[1763388574261,0.6545,3116.0,3114.8,3.72835]
[1763388574466,0.6545,3116.0,3115.7,3.2078]
[1763388574665,3.2078,3115.8,3115.5,0.00481904]
[1763388574865,3.2078,3115.9,3115.1,3.2078]
[1763388575174,0.65808324,3116.0,3115.5,3.2078]
[1763388575768,0.65808324,3116.0,3115.5,3.21057699]
[1763388576764,6.0,3115.9,3115.5,3.21057699]
[1763388576973,3.2078,3115.8,3115.1,3.2078]
[1763388577167,3.2078,3115.8,3114.8,3.2078]
[1763388577168,0.6545,3114.9,3114.8,3.2078]
[1763388577564,0.00481904,3115.2,3114.8,3.2078]
[1763388577767,0.00481904,3115.2,3114.9,0.52054]
[1763388578071,0.00481904,3115.2,3114.9,0.0031353]
[1763388578271,0.6545,3114.9,3114.4,3.2078]
[1763388578469,0.6545,3114.9,3114.0,3.2078]
[1763388579072,3.2078,3114.5,3114.0,3.2078]
[1763388579270,3.2078,3114.5,3114.0,3.21090023]
[1763388579472,3.2078,3114.5,3114.0,3.73159023]
[1763388579774,3.2078,3114.5,3114.1,0.52067]
[1763388580076,3.2078,3115.1,3114.5,0.52061]
[1763388580272,0.00481904,3115.2,3114.4,3.2078]
[1763388580464,3.2078,3115.1,3114.4,3.2078]
[1763388582773,0.00481904,3115.2,3114.4,3.2078]
[1763388583874,0.6545,3114.9,3114.4,3.2078]
[1763388584073,0.6545,3114.9,3114.0,0.00310023]
[1763388584676,3.2078,3114.5,3114.0,0.00310023]
[1763388586380,0.00481904,3115.2,3115.1,0.52051]
[1763388586775,0.00358324,3116.0,3115.0,3.72832]
[1763388586971,0.00358324,3116.0,3115.0,3.2078]
[1763388587176,0.00358324,3116.0,3115.6,0.52041]
[1763388587374,0.00358324,3116.0,3115.5,0.52043]
[1763388587575,0.00358324,3116.0,3115.4,3.2078]
[1763388587772,0.00840228,3116.0,3115.4,3.21261904]
[1763388588283,0.00840228,3116.0,3115.9,0.52038]
[1763388588484,0.00840228,3116.0,3115.8,3.2078]
[1763388589393,3.2078,3117.5,3115.8,3.2078]
[1763388589578,3.2078,3117.5,3116.5,3.2078]
[1763388589778,3.2078,3117.5,3116.5,3.72808]
[1763388589975,3.2078,3117.5,3116.5,3.2078]
[1763388590383,0.00481904,3117.3,3116.5,3.21101353]
[1763388590585,0.00481904,3117.3,3117.0,3.2078]
[1763388590886,0.00481904,3117.3,3117.1,0.52017]
[1763388591086,0.00481904,3117.3,3117.0,3.2078]
[1763388595490,0.00481904,3117.3,3116.6,3.2078]
[1763388595682,0.8564,3116.8,3116.5,0.00321353]
[1763388596281,0.8564,3116.8,3115.4,0.00481904]
[1763388596282,3.2078,3116.6,3115.8,3.2078]
[1763388596683,0.8564,3116.8,3115.8,3.2078]
[1763388596884,0.8564,3116.8,3116.2,3.2078]
[1763388597391,0.8564,3116.8,3116.2,3.21013178]
[1763388598093,0.00481904,3117.3,3116.2,3.73045178]
[1763388598295,0.00481904,3117.3,3116.2,3.21013178]
[1763388599294,0.00481904,3117.3,3116.7,3.2078]
[1763388600386,3.2078,3117.0,3116.6,0.52026]
[1763388600592,0.00481904,3117.3,3116.9,3.2078]
[1763388601289,0.8564,3116.8,3115.4,0.00481904]
[1763388601495,3.2078,3115.5,3115.4,0.00481904]
[1763388601689,3.2078,3115.5,3114.7,3.2078]
[1763388602287,3.2078,3115.1,3114.7,0.0036049]
[1763388602488,0.00294954,3115.1,3114.7,0.0036049]
[1763388604697,3.2078,3114.8,3114.7,0.0036049]
[1763388604898,0.00294954,3115.1,3114.7,0.0036049]
[1763388605400,3.2078,3114.8,3114.7,0.0036049]
[1763388605587,3.91150124,3114.8,3114.7,0.0036049]
[1763388605787,3.91150124,3114.8,3113.7,3.2078]
[1763388605989,4.0642,3114.4,3113.7,3.2078]
[1763388606198,3.2078,3114.0,3112.7,3.2078]
[1763388606398,3.2078,3113.4,3112.7,3.2078]
[1763388606588,3.2078,3112.9,3112.1,3.2078]
[1763388606790,0.00481904,3112.8,3112.1,3.73170435]
[1763388606989,0.00481904,3112.8,3112.1,3.21069435]
[1763388608103,0.00481904,3112.8,3112.5,3.2078]
[1763388608599,0.00481904,3112.8,3112.1,3.21069435]
[1763388609098,0.00481904,3112.8,3112.1,3.73170435]
[1763388609294,0.00481904,3112.8,3112.1,3.21069435]
[1763388609598,0.00481904,3112.8,3112.1,3.73170435]
[1763388609799,0.00481904,3112.8,3112.1,3.21069435]
[1763388610190,3.2078,3112.7,3112.1,3.21069435]
[1763388610702,3.2078,3112.3,3112.1,0.00289435]
[1763388611104,3.2078,3112.7,3112.1,0.00289435]
[1763388611309,0.00481904,3112.8,3112.3,0.52098]
[1763388611601,0.00481904,3112.8,3112.1,3.21069435]
[1763388612400,0.00481904,3112.8,3112.1,3.73169435]
[1763388612700,0.00481904,3112.8,3112.2,0.52099]
[1763388612902,0.00481904,3112.8,3112.1,3.21069435]
[1763388613503,0.00481904,3112.8,3112.2,0.52099]
[1763388613800,3.2078,3112.3,3112.1,0.00289435]
[1763388614007,3.2078,3112.3,3111.2,3.2078]
[1763388614204,3.2078,3111.6,3111.2,3.2078]
[1763388614604,3.2078,3111.6,3110.7,3.2078]
[1763388615205,3.2078,3111.6,3110.7,3.21174162]
[1763388615912,4.0642,3111.2,3110.7,0.00394162]
[1763388616114,3.2078,3111.2,3110.7,0.00394162]
[1763388616308,3.2078,3111.6,3110.7,3.21174162]
[1763388616499,3.2078,3111.6,3110.7,3.73297162]
[1763388616907,3.2078,3111.6,3110.7,3.21174162]
[1763388617998,3.2078,3111.6,3111.2,0.91766]
[1763388618206,3.2078,3111.6,3111.2,0.3965]
[1763388618403,3.2078,3112.1,3111.2,6.3965]
[1763388618610,3.2078,3112.5,3111.8,0.52106]
[1763388618798,3.2078,3112.5,3111.5,3.2078]
[1763388619004,3.2078,3112.4,3111.5,3.2078]
[1763388619203,3.2078,3112.4,3111.8,0.52105]
[1763388619409,3.21261904,3112.8,3112.0,0.52102]
[1763388619707,3.21261904,3112.8,3112.3,0.52097]
[1763388619898,3.21261904,3112.8,3112.7,0.52091]
[1763388620098,3.21261904,3112.8,3112.4,3.2078]
[1763388620701,3.21261904,3112.8,3112.5,0.52095]
[1763388620902,0.00481904,3112.8,3112.6,0.52093]
[1763388621402,3.2078,3114.1,3113.0,0.52086]
[1763388621607,3.2078,3114.1,3113.0,3.2078]
[1763388621904,3.2078,3114.1,3113.3,0.52081]
[1763388622107,3.2078,3114.1,3113.4,3.2078]
[1763388622503,3.21579892,3114.1,3113.4,3.73721504]
[1763388622808,3.21579892,3114.1,3113.4,3.21642504]
[1763388624509,3.2078,3113.7,3113.4,0.00862504]
[1763388626210,0.7647,3113.6,3113.0,3.2078]
[1763388626409,3.2078,3113.1,3112.5,3.2078]
[1763388627310,3.2078,3113.1,3112.5,3.2116854]
[1763388627609,3.2078,3113.6,3113.0,0.52086]
[1763388627910,3.2078,3113.6,3112.9,3.2078]
[1763388628211,3.2078,3113.6,3112.8,0.7507]
[1763388628212,3.2078,3113.6,3113.1,0.52084]
[1763388628407,3.2078,3113.6,3113.0,3.72866]
[1763388628611,3.2078,3113.6,3113.1,0.52084]
[1763388629298,3.2078,3113.6,3113.0,3.2078]
[1763388629908,3.2078,3113.6,3113.1,0.52083]
[1763388630112,3.2078,3113.6,3113.0,3.2078]
[1763388630514,3.9725,3113.6,3112.5,3.2116854]
[1763388631007,3.9725,3113.6,3112.5,3.7326254]
[1763388631207,3.9725,3113.6,3112.6,0.52093]
[1763388631412,3.9725,3113.6,3112.8,0.52089]
[1763388631712,3.2078,3113.6,3112.9,3.2078]
[1763388632108,3.9725,3113.6,3112.9,3.2078]
[1763388632509,3.2078,3113.6,3112.9,3.2078]
[1763388632709,3.2078,3113.1,3112.6,3.2078]
[1763388633215,3.2078,3113.1,3112.7,0.52091]
[1763388633403,3.2078,3113.1,3112.6,3.72872]
[1763388633607,3.2078,3113.1,3112.6,3.2078]
[1763388634007,3.2078,3112.7,3112.5,0.0038854]
[1763388634210,0.70670643,3112.6,3112.5,0.0038854]
[1763388634416,3.2078,3112.7,3112.5,0.5248254]
[1763388634618,3.2078,3112.7,3112.5,0.0038854]
[1763388635614,3.2078,3113.2,3112.5,3.7326154]
[1763388635918,0.70756461,3113.1,3112.5,0.0038854]
[1763388636118,3.2078,3113.2,3112.5,0.0038854]
[1763388636311,0.70775922,3113.1,3112.7,0.5209]
[1763388636514,3.2078,3113.2,3112.5,3.2116854]
[1763388637019,3.9725,3113.6,3112.6,0.52093]
[1763388637213,0.70818985,3113.5,3112.6,0.52093]
[1763388637411,0.70818985,3113.5,3112.5,3.2116854]
[1763388637613,3.2078,3113.6,3112.5,3.2116854]
[1763388637814,3.2078,3113.2,3112.5,3.7326254]
[1763388638019,3.2078,3113.2,3112.5,3.2116854]
[1763388638219,3.2078,3113.2,3112.8,0.52088]
[1763388638420,3.2078,3113.2,3112.6,0.52092]
[1763388638912,3.2078,3113.2,3112.5,3.2116854]
[1763388639119,3.2078,3113.2,3112.6,0.52093]
[1763388639418,3.2078,3113.2,3112.5,3.2116854]
[1763388639614,3.2078,3113.2,3112.7,0.5209]
[1763388639919,3.2078,3113.2,3112.8,0.52089]
[1763388640115,3.2078,3113.2,3112.6,0.52092]
[1763388640419,3.2078,3113.2,3112.5,3.2116854]
[1763388641919,3.2078,3112.8,3112.5,0.0038854]
[1763388642121,0.70802525,3112.7,3112.5,0.0038854]
[1763388642321,3.2078,3112.8,3112.5,0.5248154]
[1763388642618,3.2078,3112.8,3112.5,0.0038854]
[1763388642820,3.2078,3113.6,3113.5,0.52078]
[1763388643125,0.00799892,3114.1,3113.3,3.2078]
[1763388643419,3.21579892,3114.1,3113.2,3.2078]
[1763388643618,0.00799892,3114.1,3113.7,3.2078]
[1763388643817,0.00799892,3114.1,3113.7,3.72854]
[1763388644216,0.00799892,3114.1,3113.7,3.2078]
[1763388645917,3.2078,3114.4,3114.3,0.52064]
[1763388646222,11.573,3116.8,3114.8,0.52054]
[1763388646223,5.0798999,3115.7,3114.8,0.52054]
[1763388646439,0.70834661,3115.6,3115.0,3.8368]
[1763388646724,3.9725,3115.7,3115.1,3.2078]
[1763388646926,0.70920795,3115.6,3115.1,3.21507089]
[1763388647118,0.70924894,3115.5,3115.1,3.21507089]
[1763388647319,3.2078,3115.6,3115.1,3.21507089]
[1763388647515,0.7092426,3115.5,3115.1,3.21507089]
[1763388648632,3.2078,3115.2,3115.1,0.00727089]
[1763388648830,3.9170426,3115.2,3114.1,3.2078]
[1763388649023,0.7092426,3115.1,3114.1,3.72848]
[1763388649229,0.7647,3115.0,3114.1,3.2078]
[1763388649527,0.7092426,3114.9,3114.1,3.2078]
[1763388649715,0.7092426,3114.9,3114.2,3.2078]
[1763388650329,0.7092426,3114.8,3114.2,3.2078]
[1763388650531,3.2078,3115.2,3114.3,0.629]
[1763388650728,3.2078,3115.6,3114.8,3.2078]
[1763388651030,0.70891348,3115.5,3114.8,3.2078]
[1763388651717,0.70891348,3115.5,3114.8,3.72836]
[1763388651921,0.70891348,3115.5,3114.8,3.2078]
[1763388652116,0.00740315,3115.7,3115.5,0.52043]
[1763388652322,0.00740315,3115.7,3115.3,3.2078]
[1763388652527,0.00740315,3115.7,3115.4,0.52046]
[1763388652722,0.00740315,3115.7,3115.5,0.52044]
[1763388652927,0.00740315,3115.7,3115.3,3.2078]
[1763388653128,0.00740315,3115.7,3115.4,0.52046]
[1763388653329,0.00740315,3115.7,3115.5,0.52044]
[1763388653529,0.00740315,3115.7,3115.3,3.72826]
[1763388653731,3.21520315,3115.7,3115.3,3.2078]
[1763388653922,0.00740315,3115.7,3115.3,3.2078]
[1763388654225,0.00740315,3115.7,3115.3,3.72827]
[1763388654429,0.00740315,3115.7,3115.4,0.52045]
[1763388654629,0.00740315,3115.7,3115.3,3.2078]
[1763388655634,0.00740315,3115.7,3115.4,0.52046]
[1763388655839,0.00740315,3115.7,3115.6,0.52043]
[1763388656032,0.00740315,3115.7,3115.5,0.52043]
[1763388656522,0.00740315,3115.7,3115.3,3.2078]
[1763388656725,0.00740315,3115.7,3115.5,0.52043]
[1763388656930,3.2078,3116.5,3115.3,3.2078]
[1763388657131,3.2078,3116.5,3116.0,3.2078]
[1763388657132,0.7623,3116.4,3116.0,3.2078]
[1763388657927,3.2078,3116.1,3115.6,3.2078]
[1763388658136,3.21261904,3116.1,3115.6,3.2078]
[1763388658434,0.00481904,3116.1,3115.7,0.7133]
[1763388658634,0.00481904,3116.1,3116.0,3.2078]
[1763388659432,0.00481904,3116.1,3116.0,3.72816]
[1763388659640,1.904e-05,3116.1,3116.0,3.72816]
[1763388659930,1.904e-05,3116.1,3116.0,3.2078]
[1763388660131,3.2078,3117.4,3116.7,0.52024]
[1763388660339,3.2078,3117.4,3116.5,3.2078]
[1763388660534,3.9725,3117.8,3116.5,3.2078]
[1763388660727,3.2078,3117.3,3116.5,3.2078]
[1763388661127,0.00481904,3117.2,3116.5,3.2106707]
[1763388661441,0.7623,3117.1,3116.5,3.2106707]
[1763388661829,3.2078,3116.9,3116.5,3.2106707]
[1763388662039,3.2078,3116.9,3116.5,0.0028707]
[1763388662432,6.0,3116.8,3115.6,3.2078]
[1763388662631,3.2078,3116.3,3115.6,3.2078]
[1763388663038,0.7623,3115.7,3115.5,0.00481904]
[1763388663243,3.9701,3115.7,3115.5,0.00481904]
[1763388663535,3.9701,3115.7,3115.5,0.00753865]
[1763388663742,6.0,3115.6,3114.7,3.2078]
[1763388663935,3.2078,3115.1,3114.7,3.2078]
[1763388664333,3.2078,3115.1,3114.2,3.2078]
[1763388664540,3.2078,3114.7,3114.2,3.2078]
[1763388664733,3.21133895,3114.7,3114.2,3.21072524]
[1763388664933,3.2078,3114.3,3114.2,0.00292524]
[1763388665228,3.21133895,3114.7,3114.2,0.00292524]
[1763388665832,3.2078,3114.3,3114.1,0.00481904]
[1763388666440,0.00353895,3114.7,3114.1,0.00481904]
[1763388666642,3.9701,3114.4,3114.1,0.00481904]
[1763388666846,3.9701,3114.4,3114.1,0.00755024]
[1763388667939,10.152153,3114.3,3113.2,3.2078]
[1763388668141,3.2078,3113.9,3113.2,3.2078]
[1763388668341,0.7623,3113.6,3113.2,3.2078]
[1763388668951,0.7623,3113.6,3113.2,3.21043777]
[1763388669250,3.2078,3113.3,3112.3,3.2078]
[1763388669440,0.00481904,3113.1,3112.3,3.2078]
[1763388669936,0.00481904,3113.1,3112.3,3.72878]
[1763388670136,0.00481904,3113.1,3112.7,3.2078]
[1763388670337,0.00481904,3113.1,3112.7,3.21009144]
[1763388673451,0.00481904,3113.1,3112.7,0.00229144]
[1763388673452,0.7623,3112.8,3112.7,0.00229144]
[1763388674346,0.7623,3112.8,3112.3,3.2078]
[1763388674549,0.7623,3112.8,3111.8,3.2078]
[1763388674745,3.2078,3112.5,3111.8,3.2078]
[1763388675057,0.6141,3112.2,3110.8,1.23453]
[1763388675344,3.2078,3111.7,3111.0,3.2078]
[1763388677956,3.2078,3111.7,3111.3,0.52114]
[1763388678146,3.2078,3111.7,3111.0,3.2078]
[1763388679246,3.2078,3111.7,3111.1,0.52118]
[1763388679445,3.2078,3111.7,3111.0,3.2078]
[1763388680053,0.00339692,3112.2,3111.6,0.5211]
[1763388680250,0.00339692,3112.2,3111.5,3.8649]
[1763388680452,0.66919692,3112.2,3111.5,3.2078]
[1763388680646,0.00339692,3112.2,3111.6,0.5211]
[1763388680953,0.00339692,3112.2,3111.5,3.2078]
[1763388681348,0.00339692,3112.2,3111.5,3.8192]
[1763388681551,0.00339692,3112.2,3112.1,0.52101]
[1763388681851,0.00481904,3113.1,3112.9,0.52088]
[1763388682045,0.00481904,3113.1,3112.4,3.2078]
[1763388682454,0.00481904,3113.1,3112.4,3.72875]
[1763388682751,3.2078,3112.8,3112.0,3.2078]
[1763388683249,3.2078,3112.8,3112.0,3.72883]
[1763388683450,3.2078,3112.8,3112.0,3.2078]
[1763388683754,0.00742024,3113.1,3112.5,3.2078]
[1763388684454,0.00742024,3113.1,3112.4,3.2078]
[1763388686851,0.00742024,3113.1,3112.4,3.72876]
[1763388687052,0.00742024,3113.1,3112.4,3.2078]
[1763388687354,0.00742024,3113.1,3112.4,3.72876]
[1763388687846,0.00742024,3113.1,3112.5,3.72873]
[1763388688251,0.00742024,3113.1,3112.6,0.52093]
[1763388688456,0.00742024,3113.1,3112.5,3.2078]
[1763388689859,0.00742024,3113.1,3112.5,3.72874]
[1763388690056,0.00742024,3113.1,3112.5,3.2078]
[1763388690253,3.2078,3113.6,3112.9,4.31348]
[1763388690558,3.2078,3113.6,3112.9,3.7926]
[1763388690957,3.2078,3113.6,3113.1,0.52083]
[1763388691145,3.2078,3113.6,3112.9,4.31348]
[1763388691350,3.21504309,3113.6,3113.2,0.52081]
[1763388691552,0.00724309,3113.6,3113.3,3.2078]
[1763388691766,0.64664309,3113.6,3113.3,3.2078]
[1763388691953,3.2078,3113.5,3112.9,0.00835528]
[1763388693453,0.71014073,3113.4,3112.9,0.00835528]
[1763388693771,3.2078,3113.5,3112.9,0.00835528]
[1763388694257,0.71084409,3113.4,3112.9,0.00835528]
[1763388694461,0.00724309,3113.6,3113.2,3.2078]
[1763388695159,0.64664309,3113.6,3113.2,3.2078]
[1763388695356,0.710848,3113.5,3113.2,3.2078]
[1763388696269,0.710848,3113.5,3112.9,0.00835528]
[1763388697150,1.096,3113.0,3112.9,0.00835528]
[1763388697562,0.6394,3112.9,3112.0,3.2078]
[1763388697758,3.2078,3112.4,3111.5,3.2078]
[1763388697966,0.6394,3112.2,3111.5,3.2078]
[1763388698167,0.71126754,3112.1,3111.5,3.2078]
[1763388698359,0.71126754,3112.1,3111.5,4.37691]
[1763388698562,3.2078,3112.4,3111.5,3.21167581]
[1763388699066,0.6394,3112.2,3111.5,3.21167581]
[1763388699263,0.71130507,3112.1,3111.5,0.00387581]
[1763388699470,3.2078,3111.8,3111.5,0.00387581]
[1763388699765,0.71130507,3111.7,3111.5,0.00387581]
[1763388702956,0.71130507,3111.7,3111.6,1.1224]
[1763388703164,0.6394,3112.2,3111.7,1.1224]
[1763388703362,0.6394,3112.2,3112.0,3.2078]
[1763388703564,1.096,3112.1,3112.0,3.2078]
[1763388705068,0.6394,3112.2,3112.0,3.2078]
[1763388705570,0.00481904,3112.4,3112.0,3.2078]
[1763388705773,0.6394,3112.9,3112.3,0.52098]
[1763388705964,0.6394,3112.9,3112.6,3.72872]
[1763388706168,1.76215217,3113.6,3112.6,3.2078]
[1763388706466,1.76215217,3113.6,3113.0,3.2078]
[1763388706968,1.76697121,3113.6,3113.0,3.2078]